[Event "Titled Tuesday Blitz June 07 Early 2022"]
[White "Nurmanova, Alua"]
[Black "Xiong, Jeffery"]
[WhiteFideId "13729390"]
[BlackFideId "2047640"]
[WhiteElo "1921"]
[BlackElo "2714"]
[Result "0-1"]
[Round "01"]
[TimeControl "180+1"]
[Date "2022.06.07"]
[WhiteClock "0:00:02"]
[BlackClock "0:01:42"]

1. e4 {[%clk 0:03:00]}  g6 {[%clk 0:03:00]} 2. d4 {[%clk 0:03:00]}  Bg7 {[%clk 0:03:01]} 3. Nc3 {[%clk 0:03:00]}  a6 {[%clk 0:03:01]} 4. Be3 {[%clk 0:02:58]}  b5 {[%clk 0:03:01]} 5. a4 {[%clk 0:02:56]}  b4 {[%clk 0:03:01]} 6. Nd5 {[%clk 0:02:56]}  Bb7 {[%clk 0:03:00]} 7. Nxb4 {[%clk 0:02:47]}  Bxe4 {[%clk 0:03:00]} 8. Nf3 {[%clk 0:02:46]}  a5 {[%clk 0:02:59]} 9. Nd3 {[%clk 0:02:46]}  Nf6 {[%clk 0:02:59]} 10. Be2 {[%clk 0:02:46]}  O-O {[%clk 0:02:59]} 11. O-O {[%clk 0:02:47]}  d6 {[%clk 0:02:56]} 12. c4 {[%clk 0:02:47]}  Na6 {[%clk 0:02:53]} 13. Nd2 {[%clk 0:02:45]}  Bxd3 {[%clk 0:02:49]} 14. Bxd3 {[%clk 0:02:46]}  Nb4 {[%clk 0:02:50]} 15. Bb1 {[%clk 0:02:44]}  c6 {[%clk 0:02:43]} 16. Re1 {[%clk 0:02:40]}  Rb8 {[%clk 0:02:42]} 17. f3 {[%clk 0:02:32]}  Re8 {[%clk 0:02:39]} 18. Bf2 {[%clk 0:02:31]}  Qc7 {[%clk 0:02:36]} 19. Ne4 {[%clk 0:02:32]}  Nxe4 {[%clk 0:02:21]} 20. fxe4 {[%clk 0:02:29]}  c5 {[%clk 0:02:18]} 21. b3 {[%clk 0:01:57]}  cxd4 {[%clk 0:02:16]} 22. Bxd4 {[%clk 0:01:55]}  Bxd4+ {[%clk 0:02:17]} 23. Qxd4 {[%clk 0:01:55]}  Nc6 {[%clk 0:02:18]} 24. Qc3 {[%clk 0:01:54]}  Qb6+ {[%clk 0:02:16]} 25. Kh1 {[%clk 0:01:54]}  Qxb3 {[%clk 0:02:16]} 26. Qd2 {[%clk 0:01:51]}  Qb2 {[%clk 0:02:12]} 27. Bc2 {[%clk 0:01:34]}  Nd4 {[%clk 0:02:12]} 28. Rad1 {[%clk 0:00:30]}  Nxc2 {[%clk 0:01:56]} 29. Re2 {[%clk 0:00:29]}  Rb4 {[%clk 0:01:56]} 30. Qxc2 {[%clk 0:00:26]}  Qxc2 {[%clk 0:01:57]} 31. Rxc2 {[%clk 0:00:26]}  Rc8 {[%clk 0:01:58]} 32. Rdc1 {[%clk 0:00:25]}  Rxa4 {[%clk 0:01:58]} 33. Kg1 {[%clk 0:00:21]}  Rc5 {[%clk 0:01:58]} 34. Kf2 {[%clk 0:00:21]}  Kg7 {[%clk 0:01:55]} 35. Ke3 {[%clk 0:00:21]}  Ra3+ {[%clk 0:01:56]} 36. Rc3 {[%clk 0:00:18]}  Rxc4 {[%clk 0:01:53]} 37. Rxa3 {[%clk 0:00:17]}  Rxc1 {[%clk 0:01:53]} 38. Rxa5 {[%clk 0:00:18]}  Rc2 {[%clk 0:01:54]} 39. Kf3 {[%clk 0:00:18]}  Kf6 {[%clk 0:01:54]} 40. Rd5 {[%clk 0:00:17]}  h5 {[%clk 0:01:54]} 41. h3 {[%clk 0:00:17]}  Rc3+ {[%clk 0:01:54]} 42. Kf2 {[%clk 0:00:17]}  Ke6 {[%clk 0:01:53]} 43. Rd2 {[%clk 0:00:16]}  Ke5 {[%clk 0:01:53]} 44. Re2 {[%clk 0:00:16]}  Rc4 {[%clk 0:01:51]} 45. Kf3 {[%clk 0:00:16]}  g5 {[%clk 0:01:48]} 46. Re3 {[%clk 0:00:11]}  g4+ {[%clk 0:01:46]} 47. hxg4 {[%clk 0:00:11]}  hxg4+ {[%clk 0:01:47]} 48. Kf2 {[%clk 0:00:06]}  Rxe4 {[%clk 0:01:48]} 49. Ra3 {[%clk 0:00:02]}  d5 {[%clk 0:01:48]} 50. Ra7 {[%clk 0:00:02]}  Kf4 {[%clk 0:01:45]} 51. Rd7 {[%clk 0:00:01]}  g3+ {[%clk 0:01:45]} 52. Kf1 {[%clk 0:00:01]}  Re5 {[%clk 0:01:45]} 53. Rd8 {[%clk 0:00:01]}  Ke3 {[%clk 0:01:43]} 54. Rf8 {[%clk 0:00:01]}  Rh5 {[%clk 0:01:42]} 55. Rxf7 {[%clk 0:00:02]}  Rh1# {[%clk 0:01:42]} 0-1


[Site "https://www.chess.com"]

[Event "Titled Tuesday Blitz June 07 Early 2022"]
[White "Paravyan, David"]
[Black "Garcia, Gabriel Gonzaga"]
[WhiteFideId "4194985"]
[BlackFideId "2138956"]
[WhiteElo "2569"]
[BlackElo "2240"]
[Result "1-0"]
[Round "01"]
[TimeControl "180+1"]
[Date "2022.06.07"]
[WhiteClock "0:00:05"]
[BlackClock "0:00:11"]

1. e4 {[%clk 0:02:59]}  c6 {[%clk 0:02:59]} 2. d4 {[%clk 0:02:59]}  d5 {[%clk 0:03:00]} 3. e5 {[%clk 0:03:00]}  Bf5 {[%clk 0:02:59]} 4. h4 {[%clk 0:03:00]}  h5 {[%clk 0:02:59]} 5. Bd3 {[%clk 0:03:01]}  Bxd3 {[%clk 0:02:55]} 6. Qxd3 {[%clk 0:03:02]}  e6 {[%clk 0:02:56]} 7. Bg5 {[%clk 0:02:58]}  Be7 {[%clk 0:02:57]} 8. Nf3 {[%clk 0:02:55]}  Nd7 {[%clk 0:02:54]} 9. Nbd2 {[%clk 0:02:54]}  Nh6 {[%clk 0:02:55]} 10. Bxh6 {[%clk 0:02:37]}  Rxh6 {[%clk 0:02:56]} 11. c3 {[%clk 0:02:36]}  Rg6 {[%clk 0:02:55]} 12. g3 {[%clk 0:02:37]}  Qb6 {[%clk 0:02:54]} 13. O-O {[%clk 0:02:31]}  c5 {[%clk 0:02:52]} 14. c4 {[%clk 0:02:20]}  Qa6 {[%clk 0:02:49]} 15. Qc2 {[%clk 0:02:00]}  dxc4 {[%clk 0:02:43]} 16. dxc5 {[%clk 0:01:44]}  Bxc5 {[%clk 0:02:37]} 17. Ne4 {[%clk 0:01:42]}  Rg4 {[%clk 0:02:01]} 18. Nh2 {[%clk 0:01:24]}  Rg6 {[%clk 0:01:55]} 19. Rad1 {[%clk 0:01:23]}  Qc6 {[%clk 0:01:55]} 20. Rfe1 {[%clk 0:00:59]}  Rc8 {[%clk 0:01:48]} 21. Nd6+ {[%clk 0:00:52]}  Bxd6 {[%clk 0:01:47]} 22. Rxd6 {[%clk 0:00:53]}  Qc5 {[%clk 0:01:34]} 23. Qc3 {[%clk 0:00:35]}  Nxe5 {[%clk 0:01:30]} 24. Qxe5 {[%clk 0:00:31]}  c3 {[%clk 0:01:11]} 25. Qxc5 {[%clk 0:00:28]}  Rxc5 {[%clk 0:01:11]} 26. bxc3 {[%clk 0:00:28]}  Rxc3 {[%clk 0:01:12]} 27. Re2 {[%clk 0:00:26]}  Ke7 {[%clk 0:01:06]} 28. Rd5 {[%clk 0:00:24]}  Rh6 {[%clk 0:00:47]} 29. Ra5 {[%clk 0:00:24]}  a6 {[%clk 0:00:47]} 30. Rb2 {[%clk 0:00:24]}  Rc7 {[%clk 0:00:44]} 31. Nf3 {[%clk 0:00:19]}  Rh8 {[%clk 0:00:44]} 32. Kg2 {[%clk 0:00:19]}  g6 {[%clk 0:00:45]} 33. Ng5 {[%clk 0:00:16]}  Rd8 {[%clk 0:00:44]} 34. Ra3 {[%clk 0:00:16]}  f6 {[%clk 0:00:39]} 35. Nf3 {[%clk 0:00:17]}  e5 {[%clk 0:00:38]} 36. Rab3 {[%clk 0:00:16]}  b5 {[%clk 0:00:37]} 37. a4 {[%clk 0:00:15]}  bxa4 {[%clk 0:00:38]} 38. Rb7 {[%clk 0:00:11]}  Rdd7 {[%clk 0:00:33]} 39. Rxc7 {[%clk 0:00:10]}  Rxc7 {[%clk 0:00:34]} 40. Rb4 {[%clk 0:00:11]}  Ra7 {[%clk 0:00:29]} 41. Rxa4 {[%clk 0:00:11]}  Kd6 {[%clk 0:00:28]} 42. Nd2 {[%clk 0:00:10]}  Kc5 {[%clk 0:00:19]} 43. Ne4+ {[%clk 0:00:06]}  Kb5 {[%clk 0:00:19]} 44. Ra1 {[%clk 0:00:07]}  f5 {[%clk 0:00:20]} 45. Nc3+ {[%clk 0:00:06]}  Kc4 {[%clk 0:00:20]} 46. Na4 {[%clk 0:00:06]}  a5 {[%clk 0:00:20]} 47. Rb1 {[%clk 0:00:05]}  e4 {[%clk 0:00:18]} 48. Rb6 {[%clk 0:00:05]}  Re7 {[%clk 0:00:14]} 49. Rxg6 {[%clk 0:00:05]}  Kb4 {[%clk 0:00:14]} 50. Nb6 {[%clk 0:00:05]}  a4 {[%clk 0:00:11]} 51. Nd5+ {[%clk 0:00:05]} 1-0


[Site "https://www.chess.com"]

[Event "Titled Tuesday Blitz June 07 Early 2022"]
[White "Sadhwani, Raunak"]
[Black "Di Nicolantonio, Lucas"]
[WhiteFideId "35093487"]
[BlackFideId "680460"]
[WhiteElo "2616"]
[BlackElo "2381"]
[Result "0-1"]
[Round "01"]
[TimeControl "180+1"]
[Date "2022.06.07"]
[WhiteClock "0:00:05"]
[BlackClock "0:00:07"]

1. e4 {[%clk 0:03:00]}  e6 {[%clk 0:02:57]} 2. Qe2 {[%clk 0:03:00]}  d5 {[%clk 0:02:58]} 3. exd5 {[%clk 0:02:59]}  Nf6 {[%clk 0:02:56]} 4. dxe6 {[%clk 0:02:56]}  Bxe6 {[%clk 0:02:56]} 5. Nf3 {[%clk 0:02:57]}  Be7 {[%clk 0:02:54]} 6. Qb5+ {[%clk 0:02:44]}  Nc6 {[%clk 0:02:44]} 7. c3 {[%clk 0:01:46]}  O-O {[%clk 0:02:43]} 8. d4 {[%clk 0:01:46]}  Re8 {[%clk 0:02:37]} 9. Be2 {[%clk 0:01:46]}  Bd5 {[%clk 0:02:29]} 10. O-O {[%clk 0:01:43]}  Bd6 {[%clk 0:02:27]} 11. Bg5 {[%clk 0:01:39]}  Re6 {[%clk 0:01:55]} 12. Nbd2 {[%clk 0:01:33]}  a6 {[%clk 0:01:50]} 13. Qd3 {[%clk 0:01:27]}  h6 {[%clk 0:01:50]} 14. Bh4 {[%clk 0:01:27]}  Qe8 {[%clk 0:01:44]} 15. Rfe1 {[%clk 0:01:26]}  Ne4 {[%clk 0:01:40]} 16. Nxe4 {[%clk 0:01:19]}  Bxe4 {[%clk 0:01:40]} 17. Qd2 {[%clk 0:01:19]}  Be7 {[%clk 0:01:21]} 18. Bc4 {[%clk 0:01:05]}  Bxf3 {[%clk 0:00:51]} 19. Rxe6 {[%clk 0:00:45]}  fxe6 {[%clk 0:00:46]} 20. Bxe6+ {[%clk 0:00:39]}  Kh8 {[%clk 0:00:44]} 21. Bg3 {[%clk 0:00:38]}  Bg5 {[%clk 0:00:42]} 22. Qe1 {[%clk 0:00:36]}  Bh5 {[%clk 0:00:34]} 23. Bd5 {[%clk 0:00:25]}  Qd7 {[%clk 0:00:27]} 24. Qe6 {[%clk 0:00:25]}  Qxe6 {[%clk 0:00:23]} 25. Bxe6 {[%clk 0:00:26]}  Re8 {[%clk 0:00:22]} 26. d5 {[%clk 0:00:19]}  Nd8 {[%clk 0:00:20]} 27. Bf5 {[%clk 0:00:19]}  Re7 {[%clk 0:00:13]} 28. Bd3 {[%clk 0:00:19]}  Bf6 {[%clk 0:00:12]} 29. f3 {[%clk 0:00:15]}  Bf7 {[%clk 0:00:12]} 30. Be4 {[%clk 0:00:14]}  Bg8 {[%clk 0:00:11]} 31. Rd1 {[%clk 0:00:13]}  Nf7 {[%clk 0:00:11]} 32. Bd3 {[%clk 0:00:06]}  Nd6 {[%clk 0:00:10]} 33. Bf1 {[%clk 0:00:07]}  b5 {[%clk 0:00:10]} 34. Bf2 {[%clk 0:00:08]}  Bf7 {[%clk 0:00:09]} 35. h4 {[%clk 0:00:07]}  Kg8 {[%clk 0:00:09]} 36. g4 {[%clk 0:00:07]}  g5 {[%clk 0:00:08]} 37. h5 {[%clk 0:00:08]}  Re5 {[%clk 0:00:08]} 38. Rd3 {[%clk 0:00:06]}  Rxd5 {[%clk 0:00:08]} 39. Re3 {[%clk 0:00:06]}  Re5 {[%clk 0:00:08]} 40. Rxe5 {[%clk 0:00:06]}  Bxe5 {[%clk 0:00:08]} 41. a3 {[%clk 0:00:07]}  Bc4 {[%clk 0:00:08]} 42. Bc5 {[%clk 0:00:05]}  Bxf1 {[%clk 0:00:08]} 43. Kxf1 {[%clk 0:00:06]}  Kf7 {[%clk 0:00:08]} 44. Ke2 {[%clk 0:00:06]}  Ke6 {[%clk 0:00:09]} 45. Bb4 {[%clk 0:00:06]}  Kd5 {[%clk 0:00:09]} 46. Ba5 {[%clk 0:00:06]}  Nc4 {[%clk 0:00:08]} 47. Bb4 {[%clk 0:00:05]}  c5 {[%clk 0:00:07]} 0-1


[Site "https://www.chess.com"]

[Event "Titled Tuesday Blitz June 07 Early 2022"]
[White "Suich, Peter D"]
[Black "Sadubayev, Airat"]
[WhiteFideId "2050366"]
[BlackFideId "13713264"]
[WhiteElo "2403"]
[BlackElo "2230"]
[Result "1-0"]
[Round "01"]
[TimeControl "180+1"]
[Date "2022.06.08"]
[WhiteClock "0:00:22"]
[BlackClock "0:00:04"]

1. d4 {[%clk 0:03:00]}  d5 {[%clk 0:02:56]} 2. c4 {[%clk 0:03:01]}  c6 {[%clk 0:02:55]} 3. Nf3 {[%clk 0:03:02]}  Nf6 {[%clk 0:02:55]} 4. e3 {[%clk 0:03:02]}  e6 {[%clk 0:02:50]} 5. b3 {[%clk 0:03:02]}  Nbd7 {[%clk 0:02:49]} 6. Bb2 {[%clk 0:03:02]}  Bd6 {[%clk 0:02:45]} 7. Bd3 {[%clk 0:03:03]}  O-O {[%clk 0:02:41]} 8. O-O {[%clk 0:03:03]}  b6 {[%clk 0:02:38]} 9. Nc3 {[%clk 0:03:01]}  Bb7 {[%clk 0:02:33]} 10. Qe2 {[%clk 0:02:59]}  Qe7 {[%clk 0:02:29]} 11. Rfd1 {[%clk 0:02:35]}  Ba3 {[%clk 0:02:24]} 12. Bxa3 {[%clk 0:02:27]}  Qxa3 {[%clk 0:02:25]} 13. e4 {[%clk 0:02:28]}  dxe4 {[%clk 0:02:21]} 14. Nxe4 {[%clk 0:02:29]}  Nxe4 {[%clk 0:02:20]} 15. Bxe4 {[%clk 0:02:16]}  Nf6 {[%clk 0:02:18]} 16. Ne5 {[%clk 0:02:08]}  Rac8 {[%clk 0:02:13]} 17. Bf3 {[%clk 0:02:05]}  Qe7 {[%clk 0:02:06]} 18. c5 {[%clk 0:01:52]}  bxc5 {[%clk 0:01:57]} 19. dxc5 {[%clk 0:01:53]}  Qxc5 {[%clk 0:01:57]} 20. Rac1 {[%clk 0:01:53]}  Qb6 {[%clk 0:01:47]} 21. Nc4 {[%clk 0:01:15]}  Qa6 {[%clk 0:01:13]} 22. Nd6 {[%clk 0:01:13]}  Rc7 {[%clk 0:01:10]} 23. Qxa6 {[%clk 0:01:05]}  Bxa6 {[%clk 0:01:11]} 24. Bxc6 {[%clk 0:00:48]}  g6 {[%clk 0:01:03]} 25. Bf3 {[%clk 0:00:46]}  Rd7 {[%clk 0:00:55]} 26. Bc6 {[%clk 0:00:42]}  Rc7 {[%clk 0:00:52]} 27. Bf3 {[%clk 0:00:42]}  Rxc1 {[%clk 0:00:46]} 28. Rxc1 {[%clk 0:00:42]}  Rd8 {[%clk 0:00:45]} 29. Rc6 {[%clk 0:00:42]}  Bd3 {[%clk 0:00:42]} 30. h3 {[%clk 0:00:34]}  Kf8 {[%clk 0:00:38]} 31. Nb7 {[%clk 0:00:31]}  Rd4 {[%clk 0:00:30]} 32. Nc5 {[%clk 0:00:26]}  Bb1 {[%clk 0:00:28]} 33. a4 {[%clk 0:00:24]}  Nd7 {[%clk 0:00:18]} 34. Rc8+ {[%clk 0:00:21]}  Kg7 {[%clk 0:00:17]} 35. Rd8 {[%clk 0:00:21]}  Nxc5 {[%clk 0:00:10]} 36. Rxd4 {[%clk 0:00:20]}  Nxb3 {[%clk 0:00:09]} 37. Rb4 {[%clk 0:00:21]}  Bc2 {[%clk 0:00:10]} 38. Be4 {[%clk 0:00:19]}  Bxe4 {[%clk 0:00:08]} 39. Rxb3 {[%clk 0:00:19]}  a6 {[%clk 0:00:05]} 40. Rb4 {[%clk 0:00:18]}  Bd5 {[%clk 0:00:05]} 41. a5 {[%clk 0:00:19]}  Kf6 {[%clk 0:00:04]} 42. Kf1 {[%clk 0:00:20]}  Ke5 {[%clk 0:00:04]} 43. g3 {[%clk 0:00:20]}  h5 {[%clk 0:00:01]} 44. Ke2 {[%clk 0:00:20]}  g5 {[%clk 0:00:01]} 45. h4 {[%clk 0:00:21]}  g4 {[%clk 0:00:01]} 46. Ke3 {[%clk 0:00:21]}  f6 {[%clk 0:00:01]} 47. Rb6 {[%clk 0:00:21]}  Bc4 {[%clk 0:00:01]} 48. Rc6 {[%clk 0:00:22]}  Bb5 {[%clk 0:00:01]} 49. Rc5+ {[%clk 0:00:22]}  Kd6 {[%clk 0:00:02]} 50. Rxh5 {[%clk 0:00:22]}  f5 {[%clk 0:00:03]} 51. Rh8 {[%clk 0:00:20]}  Kc5 {[%clk 0:00:03]} 52. h5 {[%clk 0:00:21]}  Kb4 {[%clk 0:00:03]} 53. h6 {[%clk 0:00:21]}  Kxa5 {[%clk 0:00:04]} 54. h7 {[%clk 0:00:22]}  Bc4 {[%clk 0:00:04]} 55. Rf8 {[%clk 0:00:22]} 1-0


[Site "https://www.chess.com"]

[Event "Titled Tuesday Blitz June 07 Early 2022"]
[White "Suleymanli, Aydin"]
[Black "Szalay, Karoly"]
[WhiteFideId "13413937"]
[BlackFideId "2600544"]
[WhiteElo "2481"]
[BlackElo "2492"]
[Result "1-0"]
[Round "01"]
[TimeControl "180+1"]
[Date "2022.06.07"]
[WhiteClock "0:00:10"]
[BlackClock "0:00:15"]

1. c4 {[%clk 0:03:00]}  c5 {[%clk 0:02:59]} 2. b3 {[%clk 0:02:58]}  Nc6 {[%clk 0:02:59]} 3. Bb2 {[%clk 0:02:58]}  e5 {[%clk 0:03:00]} 4. d3 {[%clk 0:02:56]}  g6 {[%clk 0:03:00]} 5. g3 {[%clk 0:02:55]}  Bg7 {[%clk 0:03:00]} 6. Bg2 {[%clk 0:02:56]}  Nge7 {[%clk 0:03:01]} 7. Nf3 {[%clk 0:02:56]}  O-O {[%clk 0:03:02]} 8. Nfd2 {[%clk 0:02:56]}  a6 {[%clk 0:03:02]} 9. Nc3 {[%clk 0:02:55]}  Rb8 {[%clk 0:03:02]} 10. a4 {[%clk 0:02:51]}  d6 {[%clk 0:02:42]} 11. O-O {[%clk 0:02:49]}  f5 {[%clk 0:02:33]} 12. e3 {[%clk 0:02:48]}  Be6 {[%clk 0:02:34]} 13. Rc1 {[%clk 0:02:45]}  Nb4 {[%clk 0:02:19]} 14. Qe2 {[%clk 0:02:42]}  Qd7 {[%clk 0:02:15]} 15. Ba3 {[%clk 0:02:23]}  d5 {[%clk 0:01:39]} 16. Bxb4 {[%clk 0:02:16]}  cxb4 {[%clk 0:01:21]} 17. Nxd5 {[%clk 0:02:15]}  Nxd5 {[%clk 0:01:21]} 18. cxd5 {[%clk 0:02:16]}  Bxd5 {[%clk 0:01:22]} 19. e4 {[%clk 0:02:17]}  Bc6 {[%clk 0:01:21]} 20. Rfd1 {[%clk 0:02:05]}  Rbd8 {[%clk 0:01:13]} 21. Nf1 {[%clk 0:01:57]}  f4 {[%clk 0:01:12]} 22. Bf3 {[%clk 0:01:53]}  Qf7 {[%clk 0:01:05]} 23. Rc4 {[%clk 0:01:51]}  fxg3 {[%clk 0:01:03]} 24. Kg2 {[%clk 0:01:46]}  gxf2 {[%clk 0:01:01]} 25. Qxf2 {[%clk 0:01:46]}  Bh6 {[%clk 0:00:56]} 26. Ng3 {[%clk 0:01:27]}  Qe7 {[%clk 0:00:51]} 27. Ne2 {[%clk 0:01:22]}  Rd6 {[%clk 0:00:48]} 28. Qg3 {[%clk 0:01:19]}  Rfd8 {[%clk 0:00:45]} 29. d4 {[%clk 0:01:19]}  exd4 {[%clk 0:00:43]} 30. Nxd4 {[%clk 0:01:20]}  R6d7 {[%clk 0:00:20]} 31. Nxc6 {[%clk 0:00:30]}  bxc6 {[%clk 0:00:21]} 32. Rxd7 {[%clk 0:00:29]}  Rxd7 {[%clk 0:00:20]} 33. Rxc6 {[%clk 0:00:25]}  Rd2+ {[%clk 0:00:20]} 34. Kh1 {[%clk 0:00:20]}  Qd7 {[%clk 0:00:13]} 35. Qb8+ {[%clk 0:00:14]}  Bf8 {[%clk 0:00:13]} 36. Rf6 {[%clk 0:00:14]}  Qe7 {[%clk 0:00:10]} 37. e5 {[%clk 0:00:14]}  Rd8 {[%clk 0:00:09]} 38. Qb7 {[%clk 0:00:10]}  Qxb7 {[%clk 0:00:08]} 39. Bxb7 {[%clk 0:00:10]}  Bg7 {[%clk 0:00:08]} 40. Rxa6 {[%clk 0:00:09]}  Bxe5 {[%clk 0:00:08]} 41. Re6 {[%clk 0:00:09]}  Rd1+ {[%clk 0:00:09]} 42. Kg2 {[%clk 0:00:09]}  Bc3 {[%clk 0:00:10]} 43. a5 {[%clk 0:00:09]}  Ra1 {[%clk 0:00:09]} 44. a6 {[%clk 0:00:09]}  Kf7 {[%clk 0:00:10]} 45. Rc6 {[%clk 0:00:08]}  Ke7 {[%clk 0:00:09]} 46. Rc4 {[%clk 0:00:09]}  Kd6 {[%clk 0:00:09]} 47. h4 {[%clk 0:00:09]}  Ra2+ {[%clk 0:00:09]} 48. Kf3 {[%clk 0:00:10]}  Ra3 {[%clk 0:00:10]} 49. Kg4 {[%clk 0:00:10]}  h6 {[%clk 0:00:11]} 50. Kf4 {[%clk 0:00:09]}  g5+ {[%clk 0:00:11]} 51. hxg5 {[%clk 0:00:10]}  hxg5+ {[%clk 0:00:12]} 52. Kxg5 {[%clk 0:00:11]}  Ke5 {[%clk 0:00:13]} 53. Kg6 {[%clk 0:00:10]}  Kd6 {[%clk 0:00:13]} 54. Kf7 {[%clk 0:00:11]}  Kd7 {[%clk 0:00:12]} 55. Re4 {[%clk 0:00:10]}  Ra5 {[%clk 0:00:11]} 56. Re7+ {[%clk 0:00:10]}  Kd8 {[%clk 0:00:12]} 57. Re8+ {[%clk 0:00:10]}  Kc7 {[%clk 0:00:12]} 58. Re4 {[%clk 0:00:10]}  Kb6 {[%clk 0:00:12]} 59. Ke6 {[%clk 0:00:10]}  Ka7 {[%clk 0:00:13]} 60. Rc4 {[%clk 0:00:10]}  Ra3 {[%clk 0:00:13]} 61. Rc7 {[%clk 0:00:10]}  Rxb3 {[%clk 0:00:13]} 62. Bd5+ {[%clk 0:00:10]}  Kxa6 {[%clk 0:00:13]} 63. Bxb3 {[%clk 0:00:10]}  Kb5 {[%clk 0:00:14]} 64. Rc4 {[%clk 0:00:10]}  Bd2 {[%clk 0:00:14]} 65. Kd5 {[%clk 0:00:11]}  Bc3 {[%clk 0:00:15]} 66. Bc2 {[%clk 0:00:10]}  Bd2 {[%clk 0:00:15]} 67. Rc5+ {[%clk 0:00:10]}  Kb6 {[%clk 0:00:15]} 68. Bd3 {[%clk 0:00:10]}  Be3 {[%clk 0:00:14]} 69. Rc6+ {[%clk 0:00:10]}  Ka5 {[%clk 0:00:15]} 70. Ra6# {[%clk 0:00:10]} 1-0


[Site "https://www.chess.com"]

[Event "Titled Tuesday Blitz June 07 Early 2022"]
[White "Svane, Frederik"]
[Black "Migot, Tangi"]
[WhiteFideId "12923044"]
[BlackFideId "662445"]
[WhiteElo "2459"]
[BlackElo "2487"]
[Result "1-0"]
[Round "01"]
[TimeControl "180+1"]
[Date "2022.06.07"]
[WhiteClock "0:00:04"]
[BlackClock "0:00:06"]

1. a3 {[%clk 0:03:00]}  d5 {[%clk 0:02:59]} 2. Nf3 {[%clk 0:03:00]}  Bf5 {[%clk 0:02:59]} 3. e3 {[%clk 0:03:00]}  e6 {[%clk 0:03:00]} 4. d4 {[%clk 0:02:58]}  c5 {[%clk 0:02:58]} 5. Bb5+ {[%clk 0:02:53]}  Nc6 {[%clk 0:02:57]} 6. O-O {[%clk 0:02:53]}  Nf6 {[%clk 0:02:51]} 7. dxc5 {[%clk 0:02:46]}  Bxc5 {[%clk 0:02:49]} 8. Nd4 {[%clk 0:02:45]}  Bxd4 {[%clk 0:02:47]} 9. exd4 {[%clk 0:02:46]}  O-O {[%clk 0:02:45]} 10. c3 {[%clk 0:02:44]}  a6 {[%clk 0:02:43]} 11. Be2 {[%clk 0:02:40]}  b5 {[%clk 0:02:42]} 12. Nd2 {[%clk 0:02:39]}  Ne4 {[%clk 0:02:31]} 13. Nb3 {[%clk 0:02:38]}  Qb6 {[%clk 0:02:28]} 14. Bf4 {[%clk 0:02:36]}  a5 {[%clk 0:02:22]} 15. f3 {[%clk 0:02:36]}  Nf6 {[%clk 0:02:20]} 16. Nc5 {[%clk 0:02:30]}  b4 {[%clk 0:02:13]} 17. axb4 {[%clk 0:02:08]}  axb4 {[%clk 0:02:12]} 18. Rxa8 {[%clk 0:02:09]}  Rxa8 {[%clk 0:02:11]} 19. Be3 {[%clk 0:02:09]}  bxc3 {[%clk 0:02:08]} 20. bxc3 {[%clk 0:02:10]}  Qb2 {[%clk 0:02:02]} 21. Qd2 {[%clk 0:01:27]}  Qxd2 {[%clk 0:02:02]} 22. Bxd2 {[%clk 0:01:28]}  Ra2 {[%clk 0:02:02]} 23. Rd1 {[%clk 0:01:26]}  Bc2 {[%clk 0:01:58]} 24. Re1 {[%clk 0:01:26]}  h6 {[%clk 0:01:45]} 25. Be3 {[%clk 0:01:25]}  Na5 {[%clk 0:01:41]} 26. Kf2 {[%clk 0:01:13]}  Nc4 {[%clk 0:01:40]} 27. Bf4 {[%clk 0:01:12]}  Nh5 {[%clk 0:01:18]} 28. Bc1 {[%clk 0:01:10]}  g5 {[%clk 0:01:14]} 29. g4 {[%clk 0:00:37]}  Nf4 {[%clk 0:01:11]} 30. Bxf4 {[%clk 0:00:31]}  gxf4 {[%clk 0:01:11]} 31. Bxc4 {[%clk 0:00:31]}  dxc4 {[%clk 0:01:08]} 32. Re2 {[%clk 0:00:32]}  Kg7 {[%clk 0:00:47]} 33. Nd7 {[%clk 0:00:24]}  Bb3 {[%clk 0:00:42]} 34. Rxa2 {[%clk 0:00:23]}  Bxa2 {[%clk 0:00:42]} 35. h4 {[%clk 0:00:18]}  f6 {[%clk 0:00:36]} 36. Nc5 {[%clk 0:00:15]}  Kf7 {[%clk 0:00:33]} 37. Ke2 {[%clk 0:00:16]}  Bb1 {[%clk 0:00:28]} 38. Kd2 {[%clk 0:00:11]}  Bg6 {[%clk 0:00:24]} 39. Nd7 {[%clk 0:00:08]}  Ke7 {[%clk 0:00:20]} 40. Nb6 {[%clk 0:00:08]}  Bd3 {[%clk 0:00:20]} 41. Na4 {[%clk 0:00:08]}  Bf1 {[%clk 0:00:16]} 42. Ke1 {[%clk 0:00:07]}  Bd3 {[%clk 0:00:14]} 43. Nb2 {[%clk 0:00:07]}  Bg6 {[%clk 0:00:11]} 44. Nxc4 {[%clk 0:00:07]}  h5 {[%clk 0:00:11]} 45. gxh5 {[%clk 0:00:06]}  Bxh5 {[%clk 0:00:11]} 46. Ke2 {[%clk 0:00:06]}  Kd7 {[%clk 0:00:12]} 47. Nd2 {[%clk 0:00:07]}  e5 {[%clk 0:00:12]} 48. Ne4 {[%clk 0:00:07]}  Ke6 {[%clk 0:00:12]} 49. d5+ {[%clk 0:00:06]}  Kf5 {[%clk 0:00:09]} 50. d6 {[%clk 0:00:05]}  Ke6 {[%clk 0:00:09]} 51. d7 {[%clk 0:00:05]}  Be8 {[%clk 0:00:06]} 52. dxe8=Q+ {[%clk 0:00:04]} 1-0


[Site "https://www.chess.com"]